Cogmind - Beta 13 @@@ ROGUE MODE // 2024.05.10 @ 21:24:39 Player: monkeman Result: Self-destructed Performance ------------- Evolutions (2) 1000 Regions Visited (5) 1000 Robots Destroyed (71) 355 Value Destroyed (1767) 1767 Prototype IDs (8) 160 Alien Tech Used (0) 0 Bonus (50) 50 TOTAL SCORE: 4332 Bonus ------- High Alert Combat Kills 50 Cogmind --------- Core Integrity 432/550 Matter 45/300 Energy 74/100 System Corruption 13% Temperature Cool (0) Movement Treading (225) Ox1 Location -8/Materials Parts ------- > --- POWER (1) -------- (None) > --- PROPULSION (4) --- Advanced Treads Advanced Treads > --- UTILITY (4) ------ Huge Storage Unit Seismic Detector > --- WEAPON (2) ------- Makeshift Shrapnel Gun Assault Cannon > --- INVENTORY (25) --- Deuterium Engine Advanced Treads Advanced Treads Advanced Treads Wheel Improved Heat Sink Cooling System High-capacity Matter Pod (200) Sensor Array Improved Terrain Scanner EM Shotgun EM Shotgun Shock Rifle Autogun Improved Light Cannon Assault Cannon Assault Cannon Assault Cannon Grenade Launcher Rocket Launcher Peak State ------------ > --- POWER ------------ Deuterium Engine > --- PROPULSION ------- Advanced Treads Advanced Treads Advanced Treads Advanced Treads > --- UTILITY ---------- Huge Storage Unit Transport Network Coupler Light Armor Plating Hacking Suite > --- WEAPON ----------- Makeshift Shrapnel Gun Assault Cannon > --- INVENTORY -------- Deuterium Engine Advanced Treads Advanced Treads Advanced Treads Wheel Cooling System High-capacity Matter Pod Sensor Array Improved Terrain Scanner Seismic Detector EM Shotgun EM Shotgun Shock Rifle Autogun Improved Light Cannon Assault Cannon Assault Cannon Assault Cannon Grenade Launcher Rocket Launcher [Rating: 32] Favorites ----------- Power Ion Engine Engine Ion Engine Propulsion Advanced Treads Treads Advanced Treads Utility Huge Storage Unit Device Improved Terrain Scanner Storage Huge Storage Unit Processor Transport Network Coupler Hackware Hacking Suite Protection Light Armor Plating Weapon Improved Light Cannon Energy Gun Medium Laser Ballistic Gun Assault Rifle Ballistic Cannon Improved Light Cannon Launcher Grenade Launcher Build | -11 -10 -10 -9 -9 -8 ------- Run | Yrd Mat Min Mat Min Mat Slots Evolved 4 | . . . 2 . 2 Power . | . . . . . . Propulsion 2 | . . . 1 . 1 Utility 2 | . . . 1 . 1 Weapon . | . . . . . . Parts Attached 46 | 7 10 . 19 2 8 Power 6 | 1 . . 5 . . Engine 6 | 1 . . 5 . . Core . | . . . . . . Reactor . | . . . . . . Propulsion 11 | 2 . . 5 1 3 Treads 11 | 2 . . 5 1 3 Leg . | . . . . . . Wheel . | . . . . . . Hover . | . . . . . . Flight . | . . . . . . Utility 14 | 2 5 . 5 . 2 Device 4 | 1 2 . . . 1 Storage 2 | 1 1 . . . . Processor 3 | . 1 . 2 . . Hackware 2 | . 1 . . . 1 Protection 3 | . . . 3 . . Artifact . | . . . . . . Weapon 15 | 2 5 . 4 1 3 Energy Gun 1 | 1 . . . . . Energy Cannon . | . . . . . . Ballistic Gun 4 | 1 2 . . . 1 Ballistic Cannon 6 | . 2 . 3 . 1 Launcher 4 | . 1 . 1 1 1 Special Weapon . | . . . . . . Impact Weapon . | . . . . . . Slashing Weapon . | . . . . . . Piercing Weapon . | . . . . . . Special Melee Weapon . | . . . . . . Unidentified Prototypes . | . . . . . . Parts Lost 11 | . . . 3 1 7 Power 2 | . . . 1 . 1 Propulsion 4 | . . . . 1 3 Utility 5 | . . . 2 . 3 Weapon . | . . . . . . Highest Loss Streak 4 | . . . 1 1 4 To Critical Strikes 1 | . . . . . 1 Average Slot Usage (%) 96 | . 99 100 93 100 95 Engine 11 | . 14 14 10 11 7 Treads 31 | . 28 28 33 33 34 Device 4 | . 12 . . . 3 Storage 11 | . 14 14 11 11 9 Processor 3 | . . . 3 11 8 Hackware 4 | . 1 14 6 . 8 Protection 4 | . . . 6 11 5 Energy Gun 2 | . 8 . . . . Ballistic Gun 3 | . 8 . . . 8 Ballistic Cannon 15 | . 10 28 21 11 8 Launcher 1 | . . . . 11 1 Naked Turns . | . . . . . . Heaviest Build 102 | 15 94 93 102 100 100 Greatest Support 88 | 40 40 40 67 67 88 Greatest Overweight (x) 2 | . 2 2 1 1 1 Average Overweight (x) . | . 1 2 1 1 . Largest Inventory Capacity 25 | 8 25 25 25 25 25 Average Capacity 22 | 7 19 25 25 25 25 Most Carried 25 | 3 18 18 25 23 21 Average Carried 19 | 2 11 18 23 21 20 Final Capacity 25 | 8 25 25 25 25 25 Final Carried 22 | 3 18 18 22 22 20 Class Distribution -------------------- 98% | Mutant Dominant Class ---------------- Mutant | -10/Materials Mutant | -10/Mines Mutant | -9/Materials Mutant | -9/Mines Mutant | -8/Materials Resources | -11 -10 -10 -9 -9 -8 ----------- Run | Yrd Mat Min Mat Min Mat Matter Collected 1928 | 280 317 . 702 369 260 Remotely . | . . . . . . Salvage Created 1663 | 67 450 . 819 15 312 Parts 116 | 3 30 . 60 1 22 Haulers Intercepted 5 | . 1 . 4 . . Recyclers Shooed . | . . . . . . Parts Field Recycled . | . . . . . . Retrieved Matter . | . . . . . . Parts Self-Destructed . | . . . . . . Prevented . | . . . . . . Kills | -11 -10 -10 -9 -9 -8 ------- Run | Yrd Mat Min Mat Min Mat Combat Hostiles Destroyed 49 | . 10 . 25 1 13 Guns 8 | . 4 . . . 4 Cannons 30 | . 3 . 20 1 6 AOE 11 | . 3 . 5 . 3 Classes Destroyed 11 | 2 7 . 1 . 1 Worker 2 | . 1 . 1 . . Builder 2 | . 1 . 1 . . Tunneler 2 | 1 . . . . 1 Hauler 5 | . 1 . 4 . . Recycler 2 | 1 . . 1 . . Operator 3 | . 2 . 1 . . Watcher 6 | . 3 . 3 . . Swarmer 17 | . 4 . 9 1 3 Grunt 23 | . 6 . 9 . 8 Duelist 1 | . . . . . 1 Sentry 8 | . . . 7 . 1 Best Kill Streak 7 | 2 4 . 7 1 4 Combat Bots Only 5 | . 3 . 5 1 3 Max Kills in Single Turn 2 | 1 1 . 2 1 2 Gunslinging . | . . . . . . Exploded 2 | . 1 . 2 . 2 Melee . | . . . . . . Uniques/NPCs Destroyed . | . . . . . . Combat | -11 -10 -10 -9 -9 -8 -------- Run | Yrd Mat Min Mat Min Mat Hostile Shots Fired 269 | . 51 . 133 11 74 Missed 62 | . 4 . 33 3 22 Damage Taken 2850 | . 521 . 1144 320 865 Core 462 | . 104 . 161 79 118 Absorbed by Shields . | . . . . . . Core Remaining (%) 66 | 100 . 58 . 40 . Volleys Fired 199 | 5 61 . 85 1 47 Largest 2 | 2 2 . 2 2 2 Hottest 88 | 70 78 . 88 74 68 Shots Fired 381 | 10 115 . 164 3 89 Gun 144 | 10 92 . . . 42 Cannon 220 | . 18 . 158 2 42 Launcher 17 | . 5 . 6 1 5 Special . | . . . . . . Kinetic 314 | 5 65 . 158 2 84 Thermal 50 | 5 45 . . . . Explosive 17 | . 5 . 6 1 5 Electromagnetic . | . . . . . . Robot Hit Streak 12 | 4 9 . 9 1 12 Robot Miss Streak 5 | 1 5 . 5 . 5 Penetration Max . | . . . . . . Secondary Targets . | . . . . . . Shots Hit Robots 234 | 8 63 . 90 1 72 Core Hits 117 | 3 27 . 42 1 44 Critical Kills . | . . . . . . Critical Parts Destroyed . | . . . . . . Critical Strikes 6 | . 2 . 3 . 1 Burn 2 | . 2 . . . . Blast 4 | . . . 3 . 1 Melee Attacks . | . . . . . . Impact . | . . . . . . Slashing . | . . . . . . Piercing . | . . . . . . Sneak Attacks . | . . . . . . Combat Hostiles . | . . . . . . Follow-up Attacks . | . . . . . . Damage Inflicted 5329 | 98 1074 . 2188 53 1916 Guns 1642 | 98 729 . . . 815 Cannons 2938 | . 187 . 1959 53 739 Explosions 720 | . 154 . 204 . 362 Melee . | . . . . . . Ramming 29 | . 4 . 25 . . Kinetic 4153 | 59 528 . 1959 53 1554 Thermal 427 | 39 388 . . . . Explosive 720 | . 154 . 204 . 362 Electromagnetic . | . . . . . . Impact . | . . . . . . Slashing . | . . . . . . Piercing . | . . . . . . Highest Corruption 13 | . . . . 1 13 Average Corruption 1 | . . . . 1 11 Corruption Purged . | . . . . . . Corruption Blocked . | . . . . . . Effects 3 | . . . . 3 . Message Errors 1 | . . . . 1 . Matter Fused 1 | . . . . 1 . Misfires 1 | . . . . 1 . Overload Shots . | . . . . . . Overflow Damage 95 | . 29 . 31 . 35 Projectiles 74 | . 20 . 31 . 23 Explosions 21 | . 9 . . . 12 Melee . | . . . . . . Knockbacks 18 | . . . 11 . 7 Impact . | . . . . . . Kinetic 18 | . . . 11 . 7 Secondary . | . . . . . . Self-Inflicted Damage 59 | . . . . 22 37 Shots 2 | . . . . 1 1 Rammed 4 | . 2 . 2 . . Targets Rammed 4 | . 2 . 2 . . Kicked . | . . . . . . Crushed . | . . . . . . Highest Temperature 228 | 27 189 . 228 15 117 Average Temperature 43 | 12 41 . 48 8 43 Received Heat Transfer 1065 | . 177 . 411 . 477 Siege Activations . | . . . . . . Robots Corrupted . | . . . . . . Combat Hostiles . | . . . . . . Parts Fried . | . . . . . . Impact Corruptions . | . . . . . . Robots Melted . | . . . . . . Combat Hostiles . | . . . . . . Parts Melted 1 | . 1 . . . . Heat Transferred 1406 | 111 1295 . . . . Parts Sabotaged . | . . . . . . Parts Stolen . | . . . . . . Parts Stripped . | . . . . . . Power Chain Reactions . | . . . . . . Alert | -11 -10 -10 -9 -9 -8 ------- Run | Yrd Mat Min Mat Min Mat Peak Influence 556 | 10 218 . 556 221 388 Initial 198 | . 6 . . 198 3 Average 187 | 4 68 . 271 216 161 Maximum Alert Level 2 | . 1 . 2 1 1 Low Security (%) 55 | 100 98 100 36 . 61 Level 1 28 | . 1 . 30 99 38 Level 2 15 | . . . 32 . . Level 3 . | . . . . . . Level 4 . | . . . . . . Level 5 . | . . . . . . High Security . | . . . . . . Max Security . | . . . . . . Squads Dispatched 7 | . 3 . 2 . 2 Investigation . | . . . . . . Extermination . | . . . . . . Reinforcement 5 | . 3 . 2 . . Assault . | . . . . . . Garrison 2 | . . . . . 2 Intercept . | . . . . . . Searches Triggered . | . . . . . . Construction Impeded . | . . . . . . Haulers Reinforced . | . . . . . . Active Scanning Responses . | . . . . . . Cargo Convoy Interrupts . | . . . . . . Stealth | -11 -10 -10 -9 -9 -8 --------- Run | Yrd Mat Min Mat Min Mat Distress Signals 4 | . 1 . 2 . 1 Communications Jammed . | . . . . . . Distress Signals . | . . . . . . Times Spotted 85 | . 22 . 39 4 20 Peak Tracking Total 9 | . 3 . 9 4 4 Tactical Retreats 4 | . . . 3 . 1 Traps | -11 -10 -10 -9 -9 -8 ------- Run | Yrd Mat Min Mat Min Mat Traps Triggered 2 | . 1 . 1 . . Indirectly . | . . . . . . Trap Hack Attempts . | . . . . . . Triggered . | . . . . . . Disarmed . | . . . . . . Reprogrammed . | . . . . . . Reused . | . . . . . . Traps Extracted . | . . . . . . Installed . | . . . . . . Triggered . | . . . . . . Machines | -11 -10 -10 -9 -9 -8 ---------- Run | Yrd Mat Min Mat Min Mat Machines Disabled 7 | . . . 4 . 3 Max in Single Turn 1 | . . . 1 . 1 Machines Repaired . | . . . . . . Machines Dismantled . | . . . . . . Machines Sabotaged . | . . . . . . Overloaded Fab Kills . | . . . . . . Hacking | -11 -10 -10 -9 -9 -8 --------- Run | Yrd Mat Min Mat Min Mat Machines Accessed 18 | . 3 . 10 . 5 Terminals 17 | . 3 . 9 . 5 Fabricators . | . . . . . . Repair Stations . | . . . . . . Recycling Units . | . . . . . . Scanalyzers 1 | . . . 1 . . Garrison Access . | . . . . . . Total Hacks 51 | . 9 . 21 . 21 Successful 27 | . 4 . 14 . 9 Failed 23 | . 5 . 7 . 11 Catastrophic 6 | . 1 . 2 . 3 Database Lockouts 1 | . . . . . 1 Manual 27 | . 5 . 9 . 13 Terminals 47 | . 9 . 17 . 21 Fabricators . | . . . . . . Repair Stations . | . . . . . . Recycling Units . | . . . . . . Scanalyzers 4 | . . . 4 . . Garrison Access . | . . . . . . Terminal Hacks 19 | . 3 . 9 . 7 Part Schematic 2 | . 1 . 1 . . Robot Analysis 4 | . . . 3 . 1 Prototype ID Bank 4 | . 1 . 3 . . Level Access Points 1 | . . . . . 1 Branch Access Points 1 | . . . 1 . . Emergency Access Points 1 | . . . . . 1 Locate Traps 1 | . 1 . . . . Dispatch Records 1 | . . . . . 1 Recall Investigation 1 | . . . 1 . . Hauler Manifests 1 | . . . . . 1 Zone Layout 2 | . . . . . 2 Fabricator Hacks . | . . . . . . Repair Station Hacks . | . . . . . . Recycling Unit Hacks . | . . . . . . Scanalyzer 4 | . . . 4 . . Insert Component 1 | . . . 1 . . Analyze 3 | . . . 3 . . Garrison Access Hacks . | . . . . . . Unauthorized Hacks 4 | . 1 . 1 . 2 Terminals 4 | . 1 . 1 . 2 Botnet 4 | . 1 . 1 . 2 Fabricators . | . . . . . . Repair Stations . | . . . . . . Recycling Units . | . . . . . . Scanalyzers . | . . . . . . Garrison Access . | . . . . . . Data Cores Recovered . | . . . . . . Used . | . . . . . . Hacking Detections 16 | . 3 . 8 . 5 Full Trace Events 1 | . 1 . . . . Feedback Events . | . . . . . . Feedback Blocked . | . . . . . . Robot Schematics Acquired . | . . . . . . Robots Built . | . . . . . . Authchips . | . . . . . . Time . | . . . . . . Total Robot Build Rating . | . . . . . . Part Schematics Acquired 3 | . 1 . 2 . . Parts Built . | . . . . . . Authchips . | . . . . . . Time . | . . . . . . Total Part Build Rating . | . . . . . . Parts Repaired . | . . . . . . Time . | . . . . . . Parts Recycled . | . . . . . . Recycled Matter . | . . . . . . Retrieved Matter . | . . . . . . Retrieved Components . | . . . . . . Parts Scanalyzed 1 | . . . 1 . . Part Schematics Acquired 1 | . . . 1 . . Parts Damaged . | . . . . . . Bothacking | -11 -10 -10 -9 -9 -8 ------------ Run | Yrd Mat Min Mat Min Mat Used RIF Installer . | . . . . . . Robots Hacked . | . . . . . . Non-combat . | . . . . . . Combat . | . . . . . . Robot Hacks Applied . | . . . . . . Relay Couplers Released . | . . . . . . Fabnet Peak Effective % . | . . . . . . Robots Rewired . | . . . . . . Allies Hacked . | . . . . . . Hacks Repelled . | . . . . . . Allies | -11 -10 -10 -9 -9 -8 -------- Run | Yrd Mat Min Mat Min Mat Total Allies . | . . . . . . Largest Group . | . . . . . . Highest-Rated Group . | . . . . . . Highest-Rated Ally . | . . . . . . Total Orders . | . . . . . . Ally Attacks . | . . . . . . Total Damage . | . . . . . . Kills . | . . . . . . Allies Corrupted . | . . . . . . Allies Melted . | . . . . . . Intel | -11 -10 -10 -9 -9 -8 ------- Run | Yrd Mat Min Mat Min Mat Robot Analysis Total 4 | . . . 3 . 1 Derelict Logs Recovered . | . . . . . . Drone Launches . | . . . . . . Drone Recoveries . | . . . . . . Exploration | -11 -10 -10 -9 -9 -8 ------------- Run | Yrd Mat Min Mat Min Mat Turns Passed 4443 | 115 1293 39 2152 400 444 Spaces Moved 1606 | 57 444 13 792 173 127 Core 3 | 3 . . . . . Treads 1603 | 54 444 13 792 173 127 Legs . | . . . . . . Wheels . | . . . . . . Hover . | . . . . . . Flight . | . . . . . . Fastest Speed 50 | 50 160 320 230 225 148 Average Speed 230 | 154 242 320 230 227 221 Slowest Speed 320 | 160 320 320 240 230 228 Overloaded Moves . | . . . . . . Propulsion Burnouts . | . . . . . . Robots Hopped . | . . . . . . Cave-ins Triggered 1 | . . . . 1 . Exploration Rate (%) 38 | 4 79 9 81 41 19 Regions Visited 5 Branch Regions 2 Pre-discovered Areas . | . . . . . . Known Exits Taken 3 | . 1 . 1 1 . Unknown Exits Taken 2 | 1 . 1 . . . Scrap Searched . | . . . . . . Spaces Dug . | . . . . . . Terrain Destroyed 88 | . 13 . 43 3 29 Melee . | . . . . . . Projectile 15 | . 2 . 10 . 3 AOE 73 | . 11 . 33 3 26 Terrain Rammed . | . . . . . . Walls Destroyed . | . . . . . . Machines Disabled . | . . . . . . Actions | -11 -10 -10 -9 -9 -8 --------- Run | Yrd Mat Min Mat Min Mat Total 1974 | 71 550 12 965 178 198 Wait 45 | . 2 . 28 . 15 Move 1601 | 56 443 12 791 172 127 Hop . | . . . . . . Pick Up 46 | 3 21 . 19 2 1 Fast Attach 13 | 7 2 . 3 . 1 Attach 7 | . 1 . 2 1 3 Detach . | . . . . . . Swap 26 | . 7 . 14 1 4 Drop 33 | . 11 . 21 1 . Fire 199 | 5 61 . 85 1 47 Melee . | . . . . . . Ram . | . . . . . . Kick . | . . . . . . Crush 4 | . 2 . 2 . . Escape Stasis . | . . . . . . Rewire . | . . . . . . Trap . | . . . . . . Miscellaneous . | . . . . . . Route ------- -11/Scrapyard -10/Materials (discovered 5 exits: *Mat x2 / *Min x2 / [*Sub]) -10/Mines -9/Materials (discovered 4 exits: *Mat x3 / *Min) -9/Mines -8/Materials (discovered 3 exits: Fac x3) History --------- Turn | Location | Event 34 | -11/Scrapyard | Discovered new exit (range 16) 116 | -11/Scrapyard | Entered Materials 232 | -10/Materials | Discovered new exit (range 15) 274 | -10/Materials | Identified exit to Mines 327 | -10/Materials | Build established: Mutant 444 | -10/Materials | Discovered new exit (range 15) 883 | -10/Materials | Discovered new exit (range 15) 1113 | -10/Materials | Discovered new exit (range 6) 1315 | -10/Materials | Discovered exit to Mines (range 8) 1409 | -10/Materials | Entered Mines 1409 | -10/Mines | Discovered new exit (range 7) 1448 | -10/Mines | Entered Materials 1448 | -9/Materials | Evolved 2 slots: Propulsion x1, Utility x1 2463 | -9/Materials | Discovered new exit (range 3) 2477 | -9/Materials | Identified exit to Materials 3220 | -9/Materials | Discovered exit to Materials (range 4) 3404 | -9/Materials | Discovered exit to Materials (range 9) 3409 | -9/Materials | Identified exit to Mines 3600 | -9/Materials | Entered Mines 3609 | -9/Mines | Met a Derelict bent on vengeance 3831 | -9/Mines | Crushed by falling debris 3831 | -9/Mines | Core integrity fell below 50% 3948 | -9/Mines | A weapon hastily lodged in a ceiling crevice suddenly fell to the ground 3965 | -9/Mines | Discovered exit to Materials (range 11) 4000 | -9/Mines | Entered Materials 4000 | -8/Materials | Evolved 2 slots: Propulsion x1, Utility x1 4011 | -8/Materials | Central database locked down 4038 | -8/Materials | Identified exit to Factory 4322 | -8/Materials | Garrison activated, responded to threat 4440 | -8/Materials | System corruption reached 10% 4444 | -8/Materials | Self-destructed Last Messages --------------- 04426_ Acquired 3 matter. 04429_ K-01 Serf collects debris. 04434_ Destroyed Lgt. Nuclear Core. 04434_ G-47 Trooper knocked back. 04436_ K-01 Serf collects debris. 04436_ Critical hit (Burn: +37). 04437_ Critical hit (Smash). 04437_ Adv. Treads destroyed. 04437_ Lgt. Treads destroyed. 04437_ Hacking Suite destroyed. 04437_ System corrupted by crushing effect (+2). 04437_ System corrupted by crushing effect (+5). 04437_ B-36 Bruiser Lgt. Treads blasted off. 04437_ K-01 Serf collects debris. 04439_ Transport Network Coupler destroyed. 04439_ System corrupted by crushing effect (+4). 04440_ K-01 Serf collects debris. 04441_ K-01 Serf cleans the Neutrino Reactor. 04443_ K-01 Serf collects debris. 04444_ K-01 Serf cleans the Neutrino Reactor. Map ----- +----------------------------------------------------+ | ?????????????????????????????????????????????????? | | ?????????????????????????????????????????????????? | | ?????????????????????????????????????????????????? | | ?????????????????????????????????????????????????? | | ?????????????????????????????????????????????????? | | ?????????????????????????????????????????????????? | | ???????????????????????????????#########?????????? | | ???????????????????????????????# ??????????? | | ????????????????????????????????# ??????????? | | ????????????????????????????????? ??????????? | | ????????????????????????? ????????? ##??????### | | ???????????????????????##+########### ######+### | | ?????????????????????? ! | | ?????????????????????? % % % | | ?????????????????????? % % | | ???????????????????????# ############!### ## [ | | ?????????????# ??? ???# #??????????# #?# #### | | ?????????????? ???"???# #??????????# #?# # * | | ?????????????? """ ??#u #??????????# #?# # = | | ??????????????? """ ??# #??????#####+### # ] | | ??????????????? ??# %#??????# [ ## # | | ???????????????? ??# #??????# """ ## #### | | ?????????????????" ??#k ##?????# """ ## ## | | ?????????????????? ??# ;#?????# """ ## ## T | | ??????????????????? ??#% #??????# ## ## | | ????????????######## ### @ ##?????# ! ## ## | | ????????????# # b = ##########+### # | | ????????????# =t [kk # " | | ????????????# % T T + " | | ????????????# """ " g g* % # " | | ????????????# """ """ # %k############## = # | | ????????????? """ """ # #??????######## #### | | ?????????????? # #??????# # # | | ?????????????? ! # | # #?????# # # | | ??????????????######### = #?????# """ + / ! | | ?????????????????????? * #?????# """ # # | | ????????????????????? #a* #?????# """ # # | | ????????????????????" [ #?????# # # | | ????????????????????" m# ###?????######## #### | | ???????????????????""k # #??????????????# #### | | ???????????????????? # ^ ??????????????# | | ????????????????????+ ## #?#####????????# | | ??????????????????????? #? #????????# | | ???????????????????????? ?? ########## | | ??????????????????????????????????????? # | | ???????????????????????????????????????" # " | | ???????????????????????????????????????" # " | | ???????????????????????????????????????" # " | | ??????????????????????????????????????? + | | ???????????????????????????????????????"" # | +----------------------------------------------------+ Best States ------------- Heat Dissipation 31 Energy Generation 14 Energy Capacity 275 Matter Stores 300 Matter Capacity 300 Sight Range 16 Terrain Scan Range 16 Terrain Scan Density 10 Armor Coverage 150 Evasion (%) 40 Recoil Reduction 4 Offensive Hacking 10 Item Schematics ----------------- Huge Storage Unit | -10/Materials | Hacked Adv. Treads | -9/Materials | Scanalyzed Arm. Wheel | -9/Materials | Hacked Robot Schematics ------------------ None Fabricated ------------ Nothing Alien Tech Used ----------------- None Achievements -------------- None Challenges ------------ None Game ------ Seed TachyonChromaticCanceller Manual? 0 Play Time 00:29:30 Cumulative 59.0 hours Start 2024.05.09 @ 18:59:47 End 2024.05.10 @ 21:24:39 Sessions 3 Manual Loads 0 Difficulty Rogue Special Mode None Game No. 79 Rogue 79 Adventurer 0 Explorer 0 Win Type - Total 1 Types 1/0/0/0/0/0/0/0/0 Lore% 31 Gallery% 45 Achievement% 38 Wizard Run 0 Options --------- Layout 1 ASCII 0 Keyboard 0 Movement Mouse Keybinds 0 Fullscreen 1 Font 16/SmallcapsGlow Map View 55x38 Zoom Use 0% Tactical HUD 1 Map Filters NONE Filters NONE Steam 1 RUN: cbeb1c7d-176e-44eb-be1f-60221b367256